[Event "Early-Titled-Tuesday-Blitz-January-30-2024"]
[Site "Chess.com"]
[Date "2024.01.30"]
[Round "10"]
[White "Actuary44"]
[Black "flomarechot"]
[Result "1-0"]
[WhiteElo "2478"]
[BlackElo "2341"]
[TimeControl "180+1"]
[EndTime "10:02:24 PST"]
[Termination "Actuary44 won by resignation"]

1. e4 {[%clk 0:03:00.9]} 1... d6 {[%clk 0:03:00.1]} 2. d4 {[%clk 0:03:00.9]}
2... Nf6 {[%clk 0:03:00.7]} 3. Nc3 {[%clk 0:03:01.4]} 3... e5 {[%clk 0:03:01.3]}
4. dxe5 {[%clk 0:03:00.6]} 4... dxe5 {[%clk 0:03:02.2]} 5. Qxd8+ {[%clk
0:03:00.9]} 5... Kxd8 {[%clk 0:03:03.1]} 6. Bg5 {[%clk 0:03:01]} 6... Be7 {[%clk
0:03:03.2]} 7. O-O-O+ {[%clk 0:03:01.9]} 7... Nbd7 {[%clk 0:03:02.6]} 8. f4
{[%clk 0:03:01.4]} 8... Ng4 {[%clk 0:03:02.5]} 9. Bxe7+ {[%clk 0:02:56.8]} 9...
Kxe7 {[%clk 0:03:03.4]} 10. Nh3 {[%clk 0:02:55.7]} 10... exf4 {[%clk 0:03:02]}
11. Nd5+ {[%clk 0:02:55.4]} 11... Kd8 {[%clk 0:03:02.1]} 12. Ndxf4 {[%clk
0:02:55.9]} 12... c6 {[%clk 0:02:55.2]} 13. Be2 {[%clk 0:02:55.4]} 13... Ne5
{[%clk 0:02:48.6]} 14. Rhf1 {[%clk 0:02:54.9]} 14... Ke7 {[%clk 0:02:46.9]} 15.
Nd3 {[%clk 0:02:48.7]} 15... a5 {[%clk 0:02:45.1]} 16. Nhf4 {[%clk 0:02:42.4]}
16... a4 {[%clk 0:02:29.4]} 17. a3 {[%clk 0:02:41.5]} 17... Nc4 {[%clk
0:02:16.1]} 18. Rf3 {[%clk 0:02:34]} 18... Nde5 {[%clk 0:02:16]} 19. Rg3 {[%clk
0:02:30.6]} 19... g6 {[%clk 0:02:01.5]} 20. Nb4 {[%clk 0:02:28.1]} 20... Be6
{[%clk 0:01:40.7]} 21. Rc3 {[%clk 0:02:15.6]} 21... Nd6 {[%clk 0:01:38]} 22. Bf3
{[%clk 0:01:51.9]} 22... h5 {[%clk 0:01:26.3]} 23. Rc5 {[%clk 0:01:46.9]} 23...
Nd7 {[%clk 0:01:06.6]} 24. Rxc6 {[%clk 0:01:23.8]} 24... bxc6 {[%clk 0:00:49]}
25. Nxc6+ {[%clk 0:01:24.7]} 25... Ke8 {[%clk 0:00:44.3]} 26. Rxd6 {[%clk
0:01:25.6]} 26... Bg4 {[%clk 0:00:33.8]} 27. Nd5 {[%clk 0:01:16.5]} 27... Rc8
{[%clk 0:00:25.8]} 28. Nd4 {[%clk 0:00:44.1]} 28... Bxf3 {[%clk 0:00:21.6]} 29.
gxf3 {[%clk 0:00:45]} 29... Rc4 {[%clk 0:00:19.2]} 30. Nb5 {[%clk 0:00:36.4]}
30... Nc5 {[%clk 0:00:11.9]} 31. Nb6 {[%clk 0:00:19.3]} 31... Nb3+ {[%clk
0:00:05.1]} 32. Kd1 {[%clk 0:00:19.4]} 32... Rc5 {[%clk 0:00:05.8]} 33. Nc3
{[%clk 0:00:13]} 33... Na5 {[%clk 0:00:05.4]} 34. Nbxa4 {[%clk 0:00:11.2]} 34...
Rc6 {[%clk 0:00:05.2]} 35. Rd5 {[%clk 0:00:10.8]} 35... Nb7 {[%clk 0:00:05.4]}
36. Nb5 {[%clk 0:00:10.4]} 36... Kf8 {[%clk 0:00:05.2]} 37. Rd7 {[%clk
0:00:10.3]} 37... Nc5 {[%clk 0:00:04.7]} 38. Rd8+ {[%clk 0:00:09.4]} 38... Kg7
{[%clk 0:00:04.9]} 39. Rxh8 {[%clk 0:00:10.1]} 39... Kxh8 {[%clk 0:00:05.6]} 40.
Nd4 {[%clk 0:00:10.5]} 40... Rd6 {[%clk 0:00:03.6]} 41. Nxc5 {[%clk 0:00:11]}
41... Rxd4+ {[%clk 0:00:03.9]} 42. Ke2 {[%clk 0:00:11.9]} 42... Rd8 {[%clk
0:00:03.3]} 43. a4 {[%clk 0:00:11.7]} 43... Rc8 {[%clk 0:00:03.8]} 44. b4 {[%clk
0:00:11.8]} 44... Kg7 {[%clk 0:00:02.9]} 45. a5 {[%clk 0:00:11.8]} 45... f5
{[%clk 0:00:03.4]} 46. a6 {[%clk 0:00:12]} 46... Rb8 {[%clk 0:00:02.1]} 47. c3
{[%clk 0:00:09.6]} 47... fxe4 {[%clk 0:00:02]} 48. fxe4 {[%clk 0:00:10.1]} 48...
Kf6 {[%clk 0:00:02.9]} 49. Kd3 {[%clk 0:00:09]} 49... Ke5 {[%clk 0:00:03.4]} 50.
Nd7+ {[%clk 0:00:08.9]} 50... Kd6 {[%clk 0:00:03.8]} 51. Nxb8 {[%clk 0:00:09.8]}
51... Kc7 {[%clk 0:00:03.8]} 52. e5 {[%clk 0:00:09.8]} 52... Kxb8 {[%clk
0:00:04.1]} 53. e6 {[%clk 0:00:10.5]} 53... Kc7 {[%clk 0:00:05]} 54. e7 {[%clk
0:00:11.1]} 54... Kd7 {[%clk 0:00:05.6]} 55. a7 {[%clk 0:00:12]} 55... Kxe7
{[%clk 0:00:06.5]} 56. a8=Q {[%clk 0:00:12.4]} 56... Kf6 {[%clk 0:00:07.4]} 57.
Qa5 {[%clk 0:00:12.8]} 1-0

[Event "Early-Titled-Tuesday-Blitz-January-30-2024"]
[Site "Chess.com"]
[Date "2024.01.30"]
[Round "10"]
[White "SmirnovTimofey2000"]
[Black "Bushonica"]
[Result "1-0"]
[WhiteElo "1949"]
[BlackElo "1809"]
[TimeControl "180+1"]
[EndTime "10:02:24 PST"]
[Termination "SmirnovTimofey2000 won by resignation"]

1. e4 {[%clk 0:02:53]} 1... e5 {[%clk 0:02:48.6]} 2. Nf3 {[%clk 0:02:52.6]} 2...
Nf6 {[%clk 0:02:48.6]} 3. Nxe5 {[%clk 0:02:51.7]} 3... Qe7 {[%clk 0:02:39.8]} 4.
Nf3 {[%clk 0:02:49.2]} 4... Qxe4+ {[%clk 0:02:39.6]} 5. Qe2 {[%clk 0:02:48.8]}
5... Qxe2+ {[%clk 0:02:39.1]} 6. Bxe2 {[%clk 0:02:49.7]} 6... Be7 {[%clk
0:02:38]} 7. O-O {[%clk 0:02:49.6]} 7... O-O {[%clk 0:02:37.8]} 8. Nc3 {[%clk
0:02:50]} 8... Nc6 {[%clk 0:02:32.6]} 9. d4 {[%clk 0:02:46.4]} 9... d5 {[%clk
0:02:24.3]} 10. Bg5 {[%clk 0:02:43.6]} 10... Be6 {[%clk 0:02:22.3]} 11. Rad1
{[%clk 0:02:39.1]} 11... h6 {[%clk 0:02:21.9]} 12. Bh4 {[%clk 0:02:36.9]} 12...
a6 {[%clk 0:02:20.6]} 13. Ne5 {[%clk 0:02:26.8]} 13... Nb4 {[%clk 0:02:15]} 14.
Rd2 {[%clk 0:02:16]} 14... a5 {[%clk 0:02:06.7]} 15. a3 {[%clk 0:02:15.8]} 15...
Na6 {[%clk 0:02:06.5]} 16. Bf3 {[%clk 0:02:01.2]} 16... c6 {[%clk 0:02:05.6]}
17. Re1 {[%clk 0:01:56.8]} 17... Nc7 {[%clk 0:02:03.8]} 18. Na4 {[%clk
0:01:46.3]} 18... Rae8 {[%clk 0:01:56.9]} 19. Nb6 {[%clk 0:01:42.2]} 19... g5
{[%clk 0:01:53.3]} 20. Bg3 {[%clk 0:01:40.3]} 20... Nb5 {[%clk 0:01:52.6]} 21.
Be2 {[%clk 0:01:06]} 21... Nd6 {[%clk 0:01:49.7]} 22. f3 {[%clk 0:00:49.3]}
22... Nf5 {[%clk 0:01:48.8]} 23. Bf2 {[%clk 0:00:47.9]} 23... Kg7 {[%clk
0:01:44.4]} 24. Bd3 {[%clk 0:00:34.9]} 24... Nh5 {[%clk 0:01:39.8]} 25. g4
{[%clk 0:00:32.3]} 25... Nf4 {[%clk 0:01:37.8]} 26. gxf5 {[%clk 0:00:23.1]}
26... Nxd3 {[%clk 0:01:35.4]} 27. Nxd3 {[%clk 0:00:21]} 27... Bxf5 {[%clk
0:01:34.3]} 28. Ne5 {[%clk 0:00:14.4]} 28... Bd6 {[%clk 0:01:34]} 29. Rde2
{[%clk 0:00:09.4]} 29... f6 {[%clk 0:01:33.4]} 30. Nd3 {[%clk 0:00:09.3]} 30...
Kf7 {[%clk 0:01:30.1]} 31. Rxe8 {[%clk 0:00:09.1]} 31... Rxe8 {[%clk 0:01:30.2]}
32. Rxe8 {[%clk 0:00:09.3]} 32... Kxe8 {[%clk 0:01:30.1]} 33. Bg3 {[%clk
0:00:09.6]} 33... Bxg3 {[%clk 0:01:29.5]} 34. hxg3 {[%clk 0:00:10.4]} 34... Ke7
{[%clk 0:01:29.2]} 35. Kf2 {[%clk 0:00:10.2]} 35... Bg6 {[%clk 0:01:28.3]} 36.
g4 {[%clk 0:00:10.4]} 36... Kd6 {[%clk 0:01:24.8]} 37. Na4 {[%clk 0:00:09.9]}
37... b5 {[%clk 0:01:24.2]} 38. Nc3 {[%clk 0:00:09.7]} 38... Bxd3 {[%clk
0:01:21.3]} 39. cxd3 {[%clk 0:00:09.7]} 39... b4 {[%clk 0:01:21.3]} 40. axb4
{[%clk 0:00:09.8]} 40... axb4 {[%clk 0:01:21.6]} 41. Na4 {[%clk 0:00:10]} 41...
Kd7 {[%clk 0:01:18]} 42. Nc5+ {[%clk 0:00:09.6]} 42... Kc7 {[%clk 0:01:17.3]}
43. Ke3 {[%clk 0:00:08.9]} 43... Kb6 {[%clk 0:01:17]} 44. b3 {[%clk 0:00:06.7]}
44... Kc7 {[%clk 0:01:15.9]} 45. Kd2 {[%clk 0:00:05.2]} 45... Kd6 {[%clk
0:01:15.6]} 46. Ke3 {[%clk 0:00:05.5]} 46... Kc7 {[%clk 0:01:15.3]} 47. Ne6+
{[%clk 0:00:05.8]} 47... Kd6 {[%clk 0:01:15.4]} 48. Ng7 {[%clk 0:00:05.6]} 48...
c5 {[%clk 0:01:14.9]} 49. dxc5+ {[%clk 0:00:05.4]} 49... Kxc5 {[%clk 0:01:15]}
50. d4+ {[%clk 0:00:05.1]} 50... Kd6 {[%clk 0:01:14.1]} 51. Nf5+ {[%clk
0:00:05.4]} 51... Ke6 {[%clk 0:01:14.1]} 52. Nxh6 {[%clk 0:00:05.7]} 52... Ke7
{[%clk 0:01:13.4]} 53. Nf5+ {[%clk 0:00:05.9]} 53... Ke6 {[%clk 0:01:12.9]} 54.
Ng3 {[%clk 0:00:05.3]} 54... Kd6 {[%clk 0:01:12]} 55. Kd3 {[%clk 0:00:05.4]}
55... Ke6 {[%clk 0:01:11.4]} 56. Nf5 {[%clk 0:00:05.6]} 56... Kd7 {[%clk
0:01:09.1]} 57. Ne3 {[%clk 0:00:05.4]} 57... Kd6 {[%clk 0:01:09]} 58. Nc2 {[%clk
0:00:05.7]} 58... Ke6 {[%clk 0:01:07.8]} 59. Nxb4 {[%clk 0:00:05.7]} 59... f5
{[%clk 0:01:08]} 60. gxf5+ {[%clk 0:00:05.8]} 60... Kxf5 {[%clk 0:01:08.3]} 61.
Nc2 {[%clk 0:00:05.7]} 61... Ke6 {[%clk 0:01:07.7]} 62. b4 {[%clk 0:00:05.6]}
62... Kd6 {[%clk 0:01:08.1]} 63. Ke3 {[%clk 0:00:05]} 63... Kc6 {[%clk
0:01:07.8]} 64. Kf2 {[%clk 0:00:05.1]} 64... Kb5 {[%clk 0:01:08]} 65. Kg3 {[%clk
0:00:05.5]} 65... Kc4 {[%clk 0:01:07.9]} 66. Kg4 {[%clk 0:00:06]} 66... Kb5
{[%clk 0:01:08.1]} 67. Kxg5 {[%clk 0:00:06]} 67... Kc4 {[%clk 0:01:07.7]} 68. f4
{[%clk 0:00:06.5]} 1-0

[Event "Early-Titled-Tuesday-Blitz-January-30-2024"]
[Site "Chess.com"]
[Date "2024.01.30"]
[Round "10"]
[White "anasta10"]
[Black "margarita_2703"]
[Result "1/2-1/2"]
[WhiteElo "2495"]
[BlackElo "2351"]
[TimeControl "180+1"]
[EndTime "10:02:32 PST"]
[Termination "Game drawn by repetition"]

1. Nf3 {[%clk 0:03:00.9]} 1... d5 {[%clk 0:02:58.9]} 2. c4 {[%clk 0:02:59.9]}
2... e6 {[%clk 0:02:58.4]} 3. g3 {[%clk 0:02:59.6]} 3... Nf6 {[%clk 0:02:58.4]}
4. Bg2 {[%clk 0:03:00.2]} 4... Be7 {[%clk 0:02:59.1]} 5. O-O {[%clk 0:03:00.8]}
5... O-O {[%clk 0:02:59.8]} 6. b3 {[%clk 0:03:01.5]} 6... b6 {[%clk 0:02:57.7]}
7. Bb2 {[%clk 0:03:02]} 7... Bb7 {[%clk 0:02:57.9]} 8. d3 {[%clk 0:03:02]} 8...
c5 {[%clk 0:02:56.3]} 9. Nbd2 {[%clk 0:03:02.1]} 9... Nc6 {[%clk 0:02:56.4]} 10.
a3 {[%clk 0:03:02.2]} 10... d4 {[%clk 0:02:50.1]} 11. Qc2 {[%clk 0:02:58.9]}
11... Rb8 {[%clk 0:02:47.9]} 12. Rad1 {[%clk 0:02:57.4]} 12... e5 {[%clk
0:02:47.7]} 13. Qb1 {[%clk 0:02:57.8]} 13... h6 {[%clk 0:02:44.8]} 14. Qa1
{[%clk 0:02:58.1]} 14... Qd7 {[%clk 0:02:42.8]} 15. Rfe1 {[%clk 0:02:54]} 15...
Bd6 {[%clk 0:02:42.9]} 16. e3 {[%clk 0:02:53.7]} 16... Rfe8 {[%clk 0:02:42.8]}
17. exd4 {[%clk 0:02:53]} 17... exd4 {[%clk 0:02:43.7]} 18. b4 {[%clk
0:02:40.2]} 18... Ne5 {[%clk 0:02:43]} 19. Nxe5 {[%clk 0:02:37]} 19... Bxe5
{[%clk 0:02:42.6]} 20. Bxb7 {[%clk 0:02:15.3]} 20... Qxb7 {[%clk 0:02:37.4]} 21.
Ne4 {[%clk 0:02:09.1]} 21... Nxe4 {[%clk 0:02:35.9]} 22. Rxe4 {[%clk 0:02:10]}
22... Bd6 {[%clk 0:02:36.2]} 23. Rde1 {[%clk 0:02:09.3]} 23... Rxe4 {[%clk
0:02:36.3]} 24. Rxe4 {[%clk 0:02:10.2]} 24... f5 {[%clk 0:02:35.5]} 25. Re6
{[%clk 0:02:09.1]} 25... Qd7 {[%clk 0:02:34.7]} 26. Qe1 {[%clk 0:02:08.6]} 26...
Kf7 {[%clk 0:02:34.6]} 27. Re2 {[%clk 0:02:07.4]} 27... Re8 {[%clk 0:02:32.8]}
28. b5 {[%clk 0:02:03.6]} 28... Rxe2 {[%clk 0:02:31.7]} 29. Qxe2 {[%clk
0:02:04.5]} 29... Qe6 {[%clk 0:02:32.5]} 30. Qd1 {[%clk 0:01:55.1]} 30... g6
{[%clk 0:02:31.8]} 31. Bc1 {[%clk 0:01:55]} 31... Kg7 {[%clk 0:02:28.4]} 32. a4
{[%clk 0:01:54.7]} 32... Be7 {[%clk 0:02:23.4]} 33. Bd2 {[%clk 0:01:52.9]} 33...
Bg5 {[%clk 0:02:23.6]} 34. a5 {[%clk 0:01:22.8]} 34... Bxd2 {[%clk 0:02:18.5]}
35. Qxd2 {[%clk 0:01:22.5]} 35... Qe5 {[%clk 0:02:11.1]} 36. Kg2 {[%clk
0:01:08.1]} 36... g5 {[%clk 0:02:10.1]} 37. Qa2 {[%clk 0:01:05]} 37... Qc7
{[%clk 0:02:01.4]} 38. axb6 {[%clk 0:01:05]} 38... Qb7+ {[%clk 0:01:59.3]} 39.
Kg1 {[%clk 0:00:59.7]} 39... axb6 {[%clk 0:01:59.8]} 40. Qa6 {[%clk 0:00:54.4]}
40... Qb8 {[%clk 0:01:55.8]} 41. Qa2 {[%clk 0:00:51.5]} 41... f4 {[%clk
0:01:48.8]} 42. Qe2 {[%clk 0:00:51.5]} 42... Qd6 {[%clk 0:01:45.1]} 43. Qe8
{[%clk 0:00:51.1]} 43... fxg3 {[%clk 0:01:41.2]} 44. hxg3 {[%clk 0:00:50.8]}
44... Qg6 {[%clk 0:01:40.8]} 45. Qd7+ {[%clk 0:00:43.2]} 45... Qf7 {[%clk
0:01:39]} 46. Qc8 {[%clk 0:00:36.9]} 46... Qe7 {[%clk 0:01:28]} 47. Kf1 {[%clk
0:00:32.5]} 47... h5 {[%clk 0:01:25.3]} 48. Qf5 {[%clk 0:00:28.5]} 48... Qf6
{[%clk 0:01:24.7]} 49. Qd7+ {[%clk 0:00:28.7]} 49... Kh6 {[%clk 0:01:22.5]} 50.
Qc6 {[%clk 0:00:27.7]} 50... Kg6 {[%clk 0:01:22.5]} 51. Qe8+ {[%clk 0:00:27.2]}
51... Qf7 {[%clk 0:01:22.1]} 52. Qe4+ {[%clk 0:00:26.6]} 52... Qf5 {[%clk
0:01:20.9]} 53. Qc6+ {[%clk 0:00:27.2]} 53... Qf6 {[%clk 0:01:21.1]} 54. Qe8+
{[%clk 0:00:27.8]} 54... Qf7 {[%clk 0:01:21.2]} 55. Qe4+ {[%clk 0:00:27.1]}
55... Kh6 {[%clk 0:01:19.3]} 56. Qc6+ {[%clk 0:00:27.5]} 56... Qg6 {[%clk
0:01:19.4]} 57. Kg2 {[%clk 0:00:21.8]} 57... Kg7 {[%clk 0:01:18.4]} 58. Qd7+
{[%clk 0:00:20.6]} 58... Kg8 {[%clk 0:01:15.7]} 59. Qd8+ {[%clk 0:00:20.4]}
59... Kg7 {[%clk 0:01:14.2]} 60. Qc7+ {[%clk 0:00:20.8]} 60... Kh6 {[%clk
0:01:13.7]} 61. Qd8 {[%clk 0:00:19.5]} 61... Kg7 {[%clk 0:00:59.4]} 62. Qd7+
{[%clk 0:00:19.4]} 62... Qf7 {[%clk 0:00:57.4]} 63. Qc6 {[%clk 0:00:19.5]} 63...
Qf6 {[%clk 0:00:57.5]} 64. Qd7+ {[%clk 0:00:19.5]} 64... Kh6 {[%clk 0:00:56.7]}
65. Qc6 {[%clk 0:00:18.2]} 65... Kg6 {[%clk 0:00:54.4]} 66. Qd5 {[%clk
0:00:17.8]} 66... Kg7 {[%clk 0:00:51.8]} 67. Qd7+ {[%clk 0:00:17.8]} 67... Kg6
{[%clk 0:00:52]} 68. Qd5 {[%clk 0:00:17.5]} 68... g4 {[%clk 0:00:46]} 69. Qe4+
{[%clk 0:00:17]} 69... Qf5 {[%clk 0:00:45.2]} 70. Qc6+ {[%clk 0:00:17.1]} 70...
Qf6 {[%clk 0:00:44.1]} 71. Qe4+ {[%clk 0:00:17.1]} 71... Kg5 {[%clk 0:00:44.3]}
72. Qc6 {[%clk 0:00:14.6]} 72... Kg6 {[%clk 0:00:41.2]} 73. Qe4+ {[%clk
0:00:14.4]} 1/2-1/2

[Event "Early-Titled-Tuesday-Blitz-January-30-2024"]
[Site "Chess.com"]
[Date "2024.01.30"]
[Round "10"]
[White "Alen_Yeremyann"]
[Black "Kostya0705"]
[Result "0-1"]
[WhiteElo "2725"]
[BlackElo "2615"]
[TimeControl "180+1"]
[EndTime "10:02:33 PST"]
[Termination "Kostya0705 won by resignation"]

1. d4 {[%clk 0:02:58.5]} 1... Nf6 {[%clk 0:02:59.2]} 2. Nf3 {[%clk 0:02:56.6]}
2... d5 {[%clk 0:02:58.4]} 3. g3 {[%clk 0:02:56.9]} 3... c6 {[%clk 0:02:53.1]}
4. Bg2 {[%clk 0:02:57.4]} 4... e6 {[%clk 0:02:54]} 5. O-O {[%clk 0:02:57.6]}
5... Be7 {[%clk 0:02:54.5]} 6. c4 {[%clk 0:02:58.3]} 6... O-O {[%clk 0:02:55.4]}
7. Nfd2 {[%clk 0:02:58.9]} 7... Nbd7 {[%clk 0:02:53.2]} 8. Nc3 {[%clk
0:02:57.4]} 8... b6 {[%clk 0:02:53.1]} 9. b3 {[%clk 0:02:57.2]} 9... Bb7 {[%clk
0:02:52.9]} 10. Bb2 {[%clk 0:02:57.9]} 10... Rc8 {[%clk 0:02:53.1]} 11. e4
{[%clk 0:02:58.6]} 11... dxe4 {[%clk 0:02:53.1]} 12. Ndxe4 {[%clk 0:02:59.5]}
12... Nxe4 {[%clk 0:02:53.3]} 13. Nxe4 {[%clk 0:03:00.4]} 13... Nf6 {[%clk
0:02:53.8]} 14. Qe2 {[%clk 0:02:58.9]} 14... Nxe4 {[%clk 0:02:52.4]} 15. Bxe4
{[%clk 0:02:59.8]} 15... Bf6 {[%clk 0:02:52.3]} 16. Rad1 {[%clk 0:02:59.8]}
16... Qe7 {[%clk 0:02:52.1]} 17. Bc1 {[%clk 0:02:53.3]} 17... Rfd8 {[%clk
0:02:49.8]} 18. Be3 {[%clk 0:02:53.7]} 18... h6 {[%clk 0:02:50.2]} 19. Qf3
{[%clk 0:02:52]} 19... Ba8 {[%clk 0:02:47.9]} 20. Kg2 {[%clk 0:02:51.2]} 20...
Bg5 {[%clk 0:02:42.8]} 21. h4 {[%clk 0:02:47.7]} 21... Bxe3 {[%clk 0:02:42.6]}
22. fxe3 {[%clk 0:02:48.6]} 22... f5 {[%clk 0:02:42.9]} 23. Bb1 {[%clk
0:02:43.4]} 23... Rd7 {[%clk 0:02:03.6]} 24. e4 {[%clk 0:02:35.9]} 24... Qf6
{[%clk 0:01:39.3]} 25. Kh2 {[%clk 0:02:29.4]} 25... Rxd4 {[%clk 0:01:32.3]} 26.
Rxd4 {[%clk 0:02:27.2]} 26... Qxd4 {[%clk 0:01:33.2]} 27. exf5 {[%clk
0:02:28.1]} 27... c5 {[%clk 0:01:30]} 28. Qe2 {[%clk 0:02:23.6]} 28... Rf8
{[%clk 0:01:07.8]} 29. fxe6 {[%clk 0:02:08.3]} 29... Rxf1 {[%clk 0:01:05.9]} 30.
Qxf1 {[%clk 0:02:08.4]} 30... Qf6 {[%clk 0:00:55.7]} 31. Qe2 {[%clk 0:01:37.2]}
31... Kf8 {[%clk 0:00:52.2]} 32. Bh7 {[%clk 0:01:19.8]} 32... Ke7 {[%clk
0:00:28.8]} 33. Bg8 {[%clk 0:01:04.1]} 33... Qf3 {[%clk 0:00:25.5]} 34. Qxf3
{[%clk 0:01:00.2]} 34... Bxf3 {[%clk 0:00:26.4]} 35. Kg1 {[%clk 0:00:59.7]}
35... Be4 {[%clk 0:00:25.3]} 36. Kf2 {[%clk 0:00:56.8]} 36... Bb1 {[%clk
0:00:21.8]} 37. a3 {[%clk 0:00:53.9]} 37... Bc2 {[%clk 0:00:20.1]} 38. Ke3
{[%clk 0:00:47.7]} 38... Bxb3 {[%clk 0:00:19.8]} 39. Kd3 {[%clk 0:00:48.5]}
39... Ba2 {[%clk 0:00:19.3]} 40. Kc3 {[%clk 0:00:46.9]} 40... Bb1 {[%clk
0:00:19.6]} 41. g4 {[%clk 0:00:46.5]} 41... Be4 {[%clk 0:00:17]} 42. g5 {[%clk
0:00:34.4]} 42... Bf5 {[%clk 0:00:15.8]} 43. Bf7 {[%clk 0:00:29.9]} 43... Bxe6
{[%clk 0:00:15.3]} 44. Bg6 {[%clk 0:00:30]} 44... Kd6 {[%clk 0:00:15.2]} 45. a4
{[%clk 0:00:26.3]} 45... Ke5 {[%clk 0:00:13]} 46. gxh6 {[%clk 0:00:26.8]} 46...
gxh6 {[%clk 0:00:12.9]} 47. a5 {[%clk 0:00:21.7]} 47... bxa5 {[%clk 0:00:13]}
48. Be8 {[%clk 0:00:22.1]} 48... Kf4 {[%clk 0:00:12.2]} 49. h5 {[%clk
0:00:22.2]} 49... Kg5 {[%clk 0:00:11.8]} 50. Kb3 {[%clk 0:00:23]} 50... Bg4
{[%clk 0:00:05.5]} 51. Ka4 {[%clk 0:00:22]} 51... Bxh5 {[%clk 0:00:03.6]} 52.
Bc6 {[%clk 0:00:21.1]} 52... Be2 {[%clk 0:00:02.9]} 53. Bd5 {[%clk 0:00:20.8]}
53... h5 {[%clk 0:00:02.1]} 54. Kxa5 {[%clk 0:00:21.5]} 54... h4 {[%clk
0:00:02.6]} 55. Kb5 {[%clk 0:00:22.2]} 55... Kf4 {[%clk 0:00:03.2]} 56. Kxc5
{[%clk 0:00:21.5]} 56... h3 {[%clk 0:00:03.7]} 57. Kd4 {[%clk 0:00:17.7]} 57...
h2 {[%clk 0:00:04.1]} 58. c5 {[%clk 0:00:17.6]} 58... Bf3 {[%clk 0:00:04.6]} 59.
Bxf3 {[%clk 0:00:15.3]} 59... Kxf3 {[%clk 0:00:05]} 60. c6 {[%clk 0:00:16.2]}
60... h1=Q {[%clk 0:00:03.8]} 61. c7 {[%clk 0:00:17.1]} 61... Qc1 {[%clk
0:00:03.7]} 0-1

[Event "Early-Titled-Tuesday-Blitz-January-30-2024"]
[Site "Chess.com"]
[Date "2024.01.30"]
[Round "10"]
[White "VitaliyChayka"]
[Black "ChessSkool"]
[Result "0-1"]
[WhiteElo "2446"]
[BlackElo "2705"]
[TimeControl "180+1"]
[EndTime "10:02:33 PST"]
[Termination "ChessSkool won on time"]

1. d4 {[%clk 0:03:00.9]} 1... d5 {[%clk 0:02:51.4]} 2. Bf4 {[%clk 0:03:01.4]}
2... c5 {[%clk 0:02:47]} 3. e3 {[%clk 0:03:02.1]} 3... cxd4 {[%clk 0:02:46.3]}
4. exd4 {[%clk 0:03:02.1]} 4... Nc6 {[%clk 0:02:47]} 5. c3 {[%clk 0:03:01.6]}
5... Bf5 {[%clk 0:02:47.7]} 6. Qb3 {[%clk 0:03:00.6]} 6... Qd7 {[%clk
0:02:46.5]} 7. Nf3 {[%clk 0:02:59.6]} 7... f6 {[%clk 0:02:47]} 8. Nbd2 {[%clk
0:02:58.9]} 8... g5 {[%clk 0:02:44.6]} 9. Bg3 {[%clk 0:02:52.6]} 9... h5 {[%clk
0:02:44.8]} 10. h4 {[%clk 0:02:52.8]} 10... g4 {[%clk 0:02:45.1]} 11. Nh2 {[%clk
0:02:47.9]} 11... Bh6 {[%clk 0:02:45.1]} 12. Be2 {[%clk 0:02:44.1]} 12... e6
{[%clk 0:02:41.1]} 13. Rd1 {[%clk 0:02:40.3]} 13... Nge7 {[%clk 0:02:34.1]} 14.
O-O {[%clk 0:02:39.9]} 14... Bg6 {[%clk 0:02:20.4]} 15. Rfe1 {[%clk 0:02:18.2]}
15... Kf7 {[%clk 0:02:12]} 16. Nhf1 {[%clk 0:02:07.8]} 16... Nf5 {[%clk
0:02:04.5]} 17. Qa3 {[%clk 0:01:38.3]} 17... Rhe8 {[%clk 0:01:58.8]} 18. Nb3
{[%clk 0:01:38.1]} 18... b6 {[%clk 0:01:57]} 19. Qa4 {[%clk 0:01:32]} 19... Rac8
{[%clk 0:01:46.8]} 20. Ba6 {[%clk 0:01:30.7]} 20... Rcd8 {[%clk 0:01:32.6]} 21.
Bb5 {[%clk 0:01:22.2]} 21... Nfe7 {[%clk 0:01:13.1]} 22. Qa6 {[%clk 0:01:14.3]}
22... Rf8 {[%clk 0:01:10.3]} 23. Ne3 {[%clk 0:01:09.9]} 23... Qc8 {[%clk
0:01:03.1]} 24. Qxc8 {[%clk 0:01:08.4]} 24... Rxc8 {[%clk 0:01:04]} 25. Nc1
{[%clk 0:00:59.7]} 25... Nb8 {[%clk 0:00:58.8]} 26. Be2 {[%clk 0:00:44.9]} 26...
Nec6 {[%clk 0:00:31.2]} 27. Nd3 {[%clk 0:00:45.1]} 27... Rfd8 {[%clk 0:00:26.8]}
28. Bf4 {[%clk 0:00:42.7]} 28... Bxd3 {[%clk 0:00:24.8]} 29. Bxh6 {[%clk
0:00:39.8]} 29... Bxe2 {[%clk 0:00:25]} 30. Rxe2 {[%clk 0:00:40.7]} 30... Nd7
{[%clk 0:00:19.8]} 31. Bf4 {[%clk 0:00:38.9]} 31... Nf8 {[%clk 0:00:20.1]} 32.
f3 {[%clk 0:00:34.3]} 32... Ng6 {[%clk 0:00:19.5]} 33. Bg3 {[%clk 0:00:34.1]}
33... gxf3 {[%clk 0:00:15]} 34. gxf3 {[%clk 0:00:35]} 34... Nce7 {[%clk
0:00:15.5]} 35. Kf2 {[%clk 0:00:33.8]} 35... Rg8 {[%clk 0:00:15.8]} 36. Rde1
{[%clk 0:00:30.8]} 36... Nf8 {[%clk 0:00:14.9]} 37. Ng2 {[%clk 0:00:28.8]} 37...
Neg6 {[%clk 0:00:10.4]} 38. Bd6 {[%clk 0:00:27.5]} 38... Rc6 {[%clk 0:00:09.6]}
39. Bxf8 {[%clk 0:00:24.5]} 39... Rxf8 {[%clk 0:00:10.5]} 40. Rg1 {[%clk
0:00:20.5]} 40... b5 {[%clk 0:00:10.4]} 41. a3 {[%clk 0:00:20]} 41... a5 {[%clk
0:00:10.8]} 42. f4 {[%clk 0:00:18.1]} 42... Ne7 {[%clk 0:00:10.6]} 43. Ne3
{[%clk 0:00:17.5]} 43... f5 {[%clk 0:00:10.2]} 44. Rg5 {[%clk 0:00:12.1]} 44...
Rh8 {[%clk 0:00:08.7]} 45. Nf1 {[%clk 0:00:12]} 45... Ng8 {[%clk 0:00:09.3]} 46.
Ng3 {[%clk 0:00:12]} 46... Nf6 {[%clk 0:00:09.9]} 47. Kf3 {[%clk 0:00:11.2]}
47... Rc4 {[%clk 0:00:09.2]} 48. Rg2 {[%clk 0:00:07.9]} 48... Ng4 {[%clk
0:00:07.6]} 49. Nxh5 {[%clk 0:00:05.5]} 49... b4 {[%clk 0:00:06.7]} 50. axb4
{[%clk 0:00:05.5]} 50... axb4 {[%clk 0:00:07.6]} 51. Ng3 {[%clk 0:00:01.9]}
51... bxc3 {[%clk 0:00:07.8]} 52. bxc3 {[%clk 0:00:01.4]} 52... Rxc3+ {[%clk
0:00:08.7]} 53. Ke2 {[%clk 0:00:01.6]} 53... Ra8 {[%clk 0:00:07.5]} 54. Nxf5
{[%clk 0:00:01.6]} 54... Ra2+ {[%clk 0:00:07]} 55. Kd1 {[%clk 0:00:01]} 55...
Rxg2 {[%clk 0:00:07.6]} 0-1